bitfinex/quotes_SOLUSD_20250321
["timestamp","ask_amount","ask_price","bid_price","bid_amount"]
[1742525566914,32.19902255,128.61,128.6,0.063]
[1742525571824,0.03,128.66,128.6,21.6411]
[1742525572001,0.03,128.66,128.6,35.19047369]
[1742525572202,13.57937369,128.66,128.6,35.19047369]
[1742525572500,13.54937369,128.65,128.6,21.6411]
[1742525573310,13.54937369,128.64,128.6,21.6411]
[1742525573833,13.54937369,128.64,128.61,7.7754]
[1742525574508,13.54937369,128.65,128.61,319.7754]
[1742525577714,13.54937369,128.64,128.61,319.7754]
[1742525581034,13.54937369,128.62,128.6,1.6411]
[1742525581211,13.54937369,128.61,128.6,1.6411]
[1742525582502,13.54937369,128.62,128.6,9.4171]
[1742525583005,13.54937369,128.63,128.6,9.4171]
[1742525583223,13.54937369,128.64,128.6,9.4171]
[1742525583526,32.22902255,128.65,128.6,22.96647369]
[1742525583734,32.22902255,128.65,128.6,29.27677369]
[1742525584222,13.54937369,128.64,128.61,312.0]
[1742525585422,13.54937369,128.64,128.62,7.7748]
[1742525586629,18.67964886,128.65,128.61,7.7753]
[1742525586630,13.54937369,128.63,128.61,7.7753]
[1742525588527,13.54937369,128.63,128.61,319.7753]
[1742525589131,13.54937369,128.62,128.61,312.0]
[1742525590131,32.19902255,128.62,128.6,1.6411]
[1742525590342,13.54937369,128.61,128.6,0.063]
[1742525593141,13.54937369,128.61,128.6,312.063]
[1742525593940,39.97442255,128.61,128.6,0.063]
[1742525594551,32.19902255,128.61,128.6,0.063]
[1742525601048,40.54306883,128.61,128.6,0.063]
[1742525610958,40.54306883,128.61,128.58,0.063]
[1742525610959,20.28432314,128.59,128.58,0.063]
[1742525611150,52.48334569,128.59,128.58,0.063]
[1742525612161,60.25994569,128.59,128.58,0.063]
[1742525619161,60.54426883,128.59,128.58,0.063]
[1742525619560,114.74176359,128.59,128.58,0.063]
[1742525619860,121.30176359,128.59,128.56,0.063]
[1742525620063,18.64964886,128.55,128.52,0.03]
[1742525620273,32.19902255,128.53,128.52,0.03]
[1742525622365,39.97922255,128.53,128.52,0.03]
[1742525622860,32.19902255,128.53,128.52,0.03]
[1742525624748,39.97922255,128.53,128.52,0.03]
[1742525625363,40.26354569,128.53,128.52,0.03]
[1742525626147,94.46104045,128.53,128.52,0.03]
[1742525626343,40.26354569,128.53,128.52,0.03]
[1742525626554,94.74536359,128.53,128.52,0.03]
[1742525627249,20.28432314,128.49,128.45,0.063]
[1742525627448,20.0,128.5,128.45,0.063]
[1742525627449,106.68084045,128.46,128.45,0.063]
[1742525628445,106.96516359,128.46,128.41,1.5909]
[1742525628651,13.54937369,128.42,128.41,1.5909]
[1742525629151,13.54937369,128.42,128.41,313.5909]
[1742525633366,13.54937369,128.42,128.41,1.5909]
[1742525635467,32.19902255,128.42,128.39,0.03]
[1742525635652,13.54937369,128.41,128.39,0.03]
[1742525636355,13.54937369,128.41,128.39,312.03]
[1742525636558,13.54937369,128.4,128.39,312.03]
[1742525638074,18.64964886,128.42,128.39,319.8186]
[1742525638075,13.54937369,128.41,128.39,319.8186]
[1742525638371,32.19902255,128.42,128.39,319.8186]
[1742525640162,32.19902255,128.4,128.39,312.03]
[1742525640366,86.39651731,128.4,128.39,0.03]
[1742525641358,32.19902255,128.4,128.39,0.03]
[1742525645279,94.18461731,128.4,128.39,0.03]
[1742525645671,39.98712255,128.4,128.39,0.03]
[1742525645965,94.46894045,128.4,128.39,0.03]
[1742525647980,101.14894045,128.4,128.39,0.03]
[1742525651374,38.87902255,128.4,128.39,0.03]
[1742525651581,32.19902255,128.4,128.39,0.03]
[1742525654095,39.98712255,128.4,128.39,0.03]
[1742525654473,32.19902255,128.4,128.39,0.03]
[1742525655585,18.64964886,128.4,128.39,0.03]
[1742525655763,13.54937369,128.41,128.39,0.03]
[1742525657692,13.54937369,128.41,128.39,319.8187]
[1742525658893,13.54937369,128.41,128.39,312.03]
[1742525661693,13.54937369,128.41,128.38,7.819]
[1742525662718,13.54937369,128.41,128.38,319.819]
[1742525665123,13.64898951,128.41,128.38,319.819]
[1742525665813,0.063,128.45,128.38,319.819]
[1742525666028,13.64898951,128.44,128.39,21.37738951]
[1742525667029,13.64898951,128.43,128.4,7.7881]
[1742525667708,13.64898951,128.42,128.39,9.4324]
[1742525669018,13.64898951,128.43,128.39,321.4324]
[1742525671023,13.64898951,128.42,128.39,321.4324]
[1742525671399,32.29863837,128.43,128.39,321.4324]
[1742525671600,32.29863837,128.43,128.39,335.08138951]
[1742525672525,18.64964886,128.43,128.39,335.08138951]
[1742525673024,32.29863837,128.43,128.39,335.08138951]
[1742525673627,18.64964886,128.43,128.39,335.08138951]
[1742525673816,32.29863837,128.43,128.39,335.08138951]
[1742525676626,32.36163837,128.43,128.39,335.08138951]
[1742525677120,32.36163837,128.43,128.39,321.4324]
[1742525677941,32.29863837,128.4,128.39,312.0]
[1742525678238,13.64898951,128.4,128.38,0.03]
[1742525678407,13.64898951,128.39,128.38,0.03]
[1742525679420,13.64898951,128.4,128.38,0.03]
[1742525679620,13.64898951,128.41,128.38,0.03]
[1742525680330,13.64898951,128.4,128.38,0.03]
[1742525681038,13.64898951,128.4,128.38,312.03]
[1742525684033,13.64898951,128.4,128.38,0.03]
[1742525684829,13.64898951,128.41,128.38,0.03]
[1742525685022,32.29863837,128.42,128.38,0.03]
[1742525686241,13.64898951,128.41,128.38,0.03]
[1742525686634,32.29863837,128.42,128.38,0.03]
[1742525687130,32.29863837,128.42,128.39,312.0]
[1742525689043,13.64898951,128.41,128.39,312.0]
[1742525691943,13.64898951,128.41,128.38,7.8188]
[1742525692540,32.29863837,128.42,128.38,7.8188]
[1742525693231,32.29863837,128.42,128.38,319.8188]
[1742525699430,13.64898951,128.41,128.38,319.8188]
[1742525700933,32.36163837,128.42,128.38,319.8188]
[1742525701852,32.36163837,128.42,128.38,7.8188]
[1742525703747,0.063,128.42,128.38,7.8188]
[1742525703945,0.063,128.42,128.38,14.4388]
[1742525704444,0.063,128.42,128.38,28.08778951]
[1742525704646,13.64898951,128.41,128.38,6.65]
[1742525704850,13.64898951,128.41,128.38,318.65]
[1742525705731,32.36163837,128.42,128.38,318.65]
[1742525706553,40.14883837,128.42,128.38,318.65]
[1742525708152,40.14883837,128.42,128.38,6.65]
[1742525710453,40.14883837,128.42,128.38,14.4392]
[1742525710954,40.14883837,128.42,128.38,326.4392]
[1742525712358,40.14883837,128.42,128.38,318.65]
[1742525712731,18.64964886,128.4,128.38,318.65]
[1742525712939,32.29863837,128.4,128.38,0.03]
[1742525715942,40.08723837,128.4,128.38,0.03]
[1742525722070,40.08723837,128.4,128.38,312.03]
[1742525724267,40.15023837,128.4,128.38,312.03]
[1742525724971,32.36163837,128.4,128.38,312.03]
[1742525725161,32.36163837,128.4,128.38,0.03]
[1742525725978,40.14983837,128.4,128.38,0.03]
[1742525728071,40.14983837,128.4,128.38,312.03]
[1742525728873,13.64898951,128.39,128.38,0.03]
[1742525729977,40.14983837,128.4,128.38,0.03]
[1742525731077,13.64898951,128.39,128.38,0.03]
[1742525731278,32.29863837,128.39,128.38,0.03]
[1742525733483,40.08733837,128.39,128.38,0.03]
[1742525734182,32.29863837,128.39,128.38,0.03]
[1742525736987,40.08733837,128.39,128.38,0.03]
[1742525741389,18.64964886,128.39,128.38,0.03]
[1742525741687,32.29863837,128.39,128.38,0.03]
[1742525741867,32.29863837,128.39,128.38,312.03]
[1742525743684,32.29863837,128.39,128.38,0.03]
[1742525745581,40.08733837,128.39,128.38,0.03]
[1742525746793,40.08733837,128.39,128.38,312.03]
[1742525747091,32.29863837,128.39,128.38,0.03]
[1742525747286,40.08733837,128.39,128.38,0.03]
[1742525749107,40.37166151,128.39,128.38,0.03]
[1742525749498,44.55804386,128.39,128.38,0.03]
[1742525750604,44.62104386,128.39,128.38,0.03]
[1742525751088,18.64964886,128.34,128.3,28.11283547]
[1742525751278,40.09043837,128.34,128.3,28.11283547]
[1742525751807,40.09043837,128.34,128.3,15.9458]
[1742525752093,40.09043837,128.34,128.3,9.3658]
[1742525753101,32.29863837,128.34,128.3,9.3658]
[1742525753690,13.64898951,128.33,128.3,9.3658]
[1742525754004,13.64898951,128.33,128.3,321.3658]
[1742525754502,13.64898951,128.33,128.3,313.5719]
[1742525754710,13.64898951,128.32,128.3,312.0]
[1742525754888,13.64898951,128.33,128.3,319.794]
[1742525755208,13.64898951,128.33,128.3,312.0]
[1742525755610,13.64898951,128.32,128.3,312.0]
[1742525756128,32.29863837,128.31,128.28,7.7952]
[1742525756289,32.29863837,128.31,128.27,8.1719]
[1742525756290,13.64898951,128.3,128.27,1.5719]
[1742525756691,13.64898951,128.3,128.27,9.3678]
[1742525757697,13.64898951,128.3,128.27,1.5719]
[1742525757892,18.64964886,128.29,128.27,1.5719]
[1742525758411,18.64964886,128.29,128.26,15.875014]
[1742525758809,18.64964886,128.29,128.26,22.92400351]
[1742525759115,18.64964886,128.29,128.28,312.0]
[1742525763416,18.64964886,128.29,128.28,312.03]
[1742525766022,18.64964886,128.31,128.28,319.8253]
[1742525766217,18.64964886,128.29,128.28,312.03]
[1742525766419,32.29863837,128.29,128.28,312.03]
[1742525766922,18.64964886,128.29,128.28,312.03]
[1742525767430,18.64964886,128.31,128.28,312.03]
[1742525767627,18.64964886,128.29,128.28,312.03]
[1742525768731,32.29863837,128.29,128.28,312.03]
[1742525772336,7.7942,128.31,128.28,312.03]
[1742525772518,7.7942,128.31,128.28,23.13888951]
[1742525772519,20.0,128.31,128.28,23.13888951]
[1742525772719,32.29863837,128.33,128.28,23.13888951]
[1742525773624,13.64898951,128.32,128.28,23.13888951]
[1742525775441,13.64898951,128.32,128.3,7.7942]
[1742525776740,13.64898951,128.32,128.29,7.7948]
[1742525777833,0.28432314,128.33,128.29,7.7948]
[1742525778038,13.93331265,128.33,128.29,7.7948]
[1742525779029,13.93331265,128.33,128.29,319.7948]
[1742525780439,18.64964886,128.31,128.29,319.7948]
[1742525782653,13.93331265,128.33,128.29,319.7948]
[1742525783147,32.29863837,128.34,128.29,21.44378951]
[1742525784149,18.64964886,128.32,128.29,7.7948]
[1742525785942,13.64898951,128.33,128.29,319.7948]
[1742525788753,18.64964886,128.33,128.29,40.93078951]
[1742525789260,18.64964886,128.33,128.3,13.64898951]
[1742525789947,18.64964886,128.36,128.32,13.64898951]
[1742525790147,18.64964886,128.36,128.33,7.7924]
[1742525790354,18.64964886,128.36,128.33,21.44138951]
[1742525791555,18.64964886,128.36,128.33,333.44138951]
[1742525792353,13.71198951,128.38,128.33,333.44138951]
[1742525792737,18.64964886,128.36,128.33,333.44138951]
[1742525795465,18.64964886,128.36,128.33,319.7924]
[1742525795640,13.64898951,128.36,128.33,319.7924]
[1742525797051,32.29863837,128.36,128.33,319.7924]
[1742525797968,32.29863837,128.36,128.33,7.7924]
[1742525800971,32.29863837,128.36,128.33,312.0]
[1742525801363,32.29863837,128.36,128.33,319.7923]
[1742525801880,32.29863837,128.36,128.33,7.7923]
[1742525804875,32.29863837,128.36,128.33,319.7923]
[1742525807979,32.29863837,128.36,128.33,7.7923]
[1742525810977,32.29863837,128.36,128.33,319.7923]
[1742525811477,18.64964886,128.36,128.33,319.7923]
[1742525812177,18.64964886,128.36,128.33,319.8223]
[1742525812674,13.71198951,128.38,128.33,333.47128951]
[1742525812881,0.063,128.38,128.34,13.64898951]
[1742525813060,0.063,128.38,128.35,15.15238951]
[1742525814382,0.063,128.38,128.36,7.7905]
[1742525815888,0.063,128.38,128.36,319.7905]
[1742525816063,13.71198951,128.38,128.36,312.0]
[1742525816464,13.71198951,128.38,128.35,1.5034]
[1742525818082,21.50168951,128.38,128.35,1.5034]
[1742525819962,7.8527,128.38,128.35,1.5034]
[1742525822582,0.063,128.38,128.35,9.2943]
[1742525822966,0.063,128.38,128.37,13.64898951]
[1742525823573,0.063,128.38,128.35,15.8743]
[1742525823784,0.063,128.38,128.35,29.52328951]
[1742525825770,0.063,128.38,128.35,341.52328951]
[1742525826366,0.063,128.38,128.36,13.64898951]
[1742525828892,0.063,128.38,128.37,7.7899]
[1742525829576,0.063,128.38,128.36,7.7903]
[1742525831983,0.063,128.38,128.36,21.43928951]
[1742525832600,0.063,128.38,128.36,333.43928951]
[1742525833902,0.063,128.38,128.37,13.64898951]
[1742525835600,0.063,128.38,128.37,21.43888951]
[1742525835806,0.063,128.38,128.37,41.43888951]
[1742525836905,0.063,128.38,128.37,353.43888951]
[1742525848634,0.063,128.38,128.37,353.46888951]
[1742525849613,0.063,128.38,128.37,0.03]
[1742525852609,0.063,128.38,128.37,312.03]
[1742525857216,0.063,128.38,128.37,319.8199]
[1742525858727,0.063,128.38,128.37,7.8199]
[1742525860618,0.063,128.38,128.37,21.46888951]
[1742525861742,0.063,128.38,128.37,333.46888951]
[1742525867129,0.063,128.38,128.37,319.8199]
[1742525868236,0.063,128.38,128.37,7.8199]
[1742525871233,0.063,128.38,128.37,319.8199]
[1742525880628,0.0001,128.38,128.37,41.46888951]
[1742525880951,0.0001,128.39,128.37,47.88595108]
[1742525881249,0.0001,128.39,128.38,20.37115108]
[1742525881436,0.0001,128.39,128.38,101.57105108]
[1742525881946,0.0001,128.4,128.39,0.14216157]
[1742525882128,0.0001,128.4,128.39,33.79115108]
[1742525882541,0.0001,128.4,128.39,41.57985108]
[1742525883648,0.0001,128.4,128.39,353.57985108]
[1742525887753,0.0001,128.4,128.39,434.77975108]
[1742525893657,0.0001,128.4,128.39,408.46013226]
[1742525894232,0.063,128.43,128.42,20.0]
[1742525894449,0.063,128.43,128.42,40.22898951]
[1742525895755,0.063,128.43,128.42,48.01588951]
[1742525896646,0.063,128.43,128.42,48.58453579]
[1742525897235,0.063,128.43,128.42,48.30021265]
[1742525897436,0.063,128.43,128.42,48.01588951]
[1742525897630,0.063,128.43,128.42,360.01588951]
[1742525897953,0.063,128.43,128.42,326.3669]
[1742525901058,0.063,128.43,128.42,14.3669]
[1742525904060,0.063,128.43,128.42,326.3669]
[1742525906288,0.063,128.43,128.42,340.01588951]
[1742525909572,0.063,128.43,128.42,319.7869]
[1742525910159,0.063,128.43,128.42,333.43588951]
[1742525911669,0.063,128.43,128.42,41.43588951]
[1742525914574,0.063,128.43,128.42,353.43588951]
[1742525924792,0.063,128.43,128.42,353.72021265]
[1742525925100,0.063,128.43,128.42,355.62263579]
[1742525927283,0.063,128.43,128.42,362.20263579]
[1742525928817,0.063,128.43,128.42,443.40263579]
[1742525963647,0.0001,128.43,128.42,443.40263579]
[1742525964947,0.0001,128.45,128.44,40.56864628]
[1742525965139,0.0001,128.45,128.44,55.77382184]
[1742525965548,0.0001,128.45,128.44,63.55952184]
[1742525968151,0.0001,128.45,128.44,375.55952184]
[1742525968349,0.0001,128.45,128.44,374.00333579]
[1742525969852,0.0001,128.45,128.44,455.20333579]
[1742525973834,0.0001,128.45,128.44,528.44894269]
[1742525974152,0.063,128.51,128.48,20.0]
[1742525974348,0.063,128.51,128.49,20.22898951]
[1742525975350,0.063,128.51,128.5,7.7821]
[1742525977259,0.063,128.51,128.5,319.7821]
[1742525977557,0.063,128.51,128.5,333.43108951]
[1742525985463,0.063,128.51,128.5,319.7821]
[1742525985656,0.063,128.51,128.48,40.22898951]
[1742525986070,0.063,128.51,128.48,26.58]
[1742525986273,0.063,128.51,128.48,20.0]
[1742525986969,0.063,128.51,128.48,27.783]
[1742525988569,0.063,128.51,128.48,339.783]
[1742525991664,0.063,128.51,128.48,346.343]
[1742526000785,0.063,128.51,128.48,47.99198951]
[1742526000960,0.063,128.51,128.49,13.64898951]
[1742526001366,0.063,128.51,128.5,13.64898951]
[1742526001696,0.063,128.51,128.49,13.64898951]
[1742526002494,0.063,128.51,128.5,7.7821]
[1742526003789,0.063,128.51,128.5,319.7821]
[1742526005082,0.063,128.51,128.5,312.0]
[1742526005289,0.063,128.51,128.48,20.0]
[1742526005472,13.71198951,128.51,128.48,27.783]
[1742526007087,13.71198951,128.51,128.48,20.0]
[1742526007295,13.64898951,128.49,128.45,26.56]
[1742526007992,13.64898951,128.49,128.45,34.3448]
[1742526008181,13.64898951,128.49,128.46,312.0]
[1742526008375,13.64898951,128.48,128.46,312.0]
[1742526011498,13.64898951,128.48,128.46,319.7843]
[1742526011705,13.64898951,128.49,128.46,319.7843]
[1742526013321,0.063,128.51,128.47,13.64898951]
[1742526013488,0.063,128.51,128.48,13.64898951]
[1742526013796,0.063,128.51,128.49,13.64898951]
[1742526014491,13.71198951,128.51,128.47,13.64898951]
[1742526015297,13.71198951,128.51,128.47,7.7833]
[1742526016097,13.64898951,128.49,128.46,81.2]
[1742526016273,13.71198951,128.51,128.46,102.63328951]
[1742526016480,13.71198951,128.51,128.46,414.63328951]
[1742526016802,13.71198951,128.51,128.46,333.43328951]
[1742526016979,0.063,128.51,128.47,13.64898951]
[1742526017494,0.063,128.51,128.48,7.7833]
[1742526017692,0.063,128.51,128.49,6.56]
[1742526018800,0.063,128.51,128.5,7.7821]
[1742526019678,0.063,128.51,128.5,41.43108951]
[1742526020092,0.063,128.51,128.5,353.43108951]
[1742526020982,0.063,128.51,128.5,41.43108951]
[1742526021200,0.063,128.52,128.51,0.28432314]
[1742526021383,0.063,128.53,128.52,33.93331265]
[1742526022094,0.063,128.53,128.52,33.64898951]
[1742526022602,0.063,128.53,128.52,33.93331265]
[1742526023307,0.063,128.53,128.52,41.71411265]
[1742526023985,0.063,128.53,128.52,353.71411265]
[1742526036013,0.063,128.53,128.52,353.99843579]
[1742526036394,13.71198951,128.53,128.48,26.56]
[1742526036593,13.64898951,128.52,128.48,26.56]
[1742526037596,13.64898951,128.52,128.48,34.3432]
[1742526038314,13.64898951,128.52,128.48,26.56]
[1742526038512,13.64898951,128.52,128.48,47.99208951]
[1742526039408,13.64898951,128.52,128.48,359.99208951]
[1742526041015,13.64898951,128.52,128.48,47.99208951]
[1742526041430,13.71198951,128.53,128.48,47.99208951]
[1742526041918,13.64898951,128.52,128.48,34.3431]
[1742526042225,13.64898951,128.52,128.48,27.7831]
[1742526042612,13.64898951,128.51,128.48,6.56]
[1742526042820,13.64898951,128.49,128.46,20.0]
[1742526043118,13.64898951,128.49,128.46,26.56]
[1742526043318,13.64898951,128.48,128.45,6.56]
[1742526043702,13.64898951,128.48,128.44,48.05748951]
[1742526044003,13.64898951,128.48,128.46,312.0]
[1742526045126,13.64898951,128.47,128.46,312.0]
[1742526045606,13.64898951,128.48,128.46,312.0]
[1742526047322,13.64898951,128.49,128.46,312.0]
[1742526047817,13.64898951,128.49,128.46,319.7843]
[1742526048226,13.64898951,128.49,128.46,7.7843]
[1742526048718,13.64898951,128.49,128.45,21.43378951]
[1742526049018,26.43134886,128.51,128.45,7.7848]
[1742526049225,13.64898951,128.49,128.45,21.43378951]
[1742526049621,13.64898951,128.5,128.45,21.43378951]
[1742526049819,8.1921,128.52,128.47,33.64898951]
[1742526050025,0.03,128.52,128.48,20.20898951]
[1742526050227,0.03,128.52,128.5,13.64898951]
[1742526051304,0.03,128.52,128.51,312.0]
[1742526052323,18.64964886,128.51,128.44,26.643]
[1742526052500,13.64898951,128.48,128.44,26.643]
[1742526054106,13.64898951,128.47,128.44,26.643]
[1742526054305,13.64898951,128.47,128.44,6.643]
[1742526054926,13.64898951,128.46,128.44,6.643]
[1742526055224,13.64898951,128.46,128.44,0.063]
[1742526055428,13.64898951,128.46,128.44,312.063]
[1742526056110,13.64898951,128.47,128.44,312.063]
[1742526056723,13.64898951,128.48,128.44,312.063]
[1742526056928,13.64898951,128.48,128.44,0.063]
[1742526059029,13.64898951,128.47,128.44,0.063]
[1742526060020,13.64898951,128.47,128.44,312.063]
[1742526060934,13.64898951,128.48,128.44,339.8484]
[1742526061133,13.64898951,128.48,128.44,353.49738951]
[1742526062114,13.64898951,128.48,128.44,339.8484]
[1742526063955,13.64898951,128.49,128.44,353.49738951]
[1742526064122,13.64898951,128.49,128.44,41.49738951]
[1742526065323,13.64898951,128.45,128.44,0.063]
[1742526066635,21.43408951,128.45,128.44,0.063]
[1742526067137,29.09953704,128.45,128.44,0.063]
[1742526067943,21.31443704,128.45,128.44,0.063]
[1742526068138,21.31443704,128.46,128.44,0.063]
[1742526070441,21.31443704,128.45,128.44,0.063]
[1742526071147,47.7491859,128.45,128.44,0.063]
[1742526072958,48.03350904,128.45,128.44,0.063]
[1742526079157,21.31443704,128.46,128.44,0.063]
[1742526079756,21.31443704,128.45,128.44,0.063]
[1742526080162,21.31443704,128.45,128.44,312.063]
[1742526081853,7.7833,128.48,128.44,319.8487]
[1742526081854,21.31443704,128.46,128.44,319.8487]
[1742526082250,21.31443704,128.46,128.44,312.063]
[1742526082455,21.31443704,128.46,128.44,319.8487]
[1742526082963,21.31443704,128.45,128.44,319.8487]
[1742526083145,21.31443704,128.45,128.44,7.8487]
[1742526083546,21.31443704,128.45,128.44,0.063]
[1742526089169,13.63812588,128.45,128.44,0.063]
[1742526089567,7.7839,128.47,128.44,0.063]
[1742526089568,13.63812588,128.46,128.44,0.063]
[1742526091570,13.63812588,128.46,128.44,312.063]
[1742526094164,13.63812588,128.46,128.44,0.063]
[1742526097671,6.86432314,128.5,128.44,0.063]
[1742526097672,13.63812588,128.48,128.44,0.063]
[1742526098260,13.63812588,128.47,128.44,0.063]
[1742526099574,13.63812588,128.48,128.44,0.063]
[1742526099959,13.63812588,128.48,128.44,13.70112588]
[1742526100158,13.63812588,128.49,128.44,13.70112588]
[1742526100779,13.63812588,128.49,128.44,325.70112588]
[1742526101188,13.63812588,128.49,128.45,7.7851]
[1742526101879,13.63812588,128.48,128.45,7.7851]
[1742526104284,13.63812588,128.48,128.45,319.7851]
[1742526105886,75.15927552,128.52,128.46,15.14722588]
[1742526105887,13.63812588,128.5,128.46,15.14722588]
[1742526106459,13.63812588,128.51,128.47,13.63812588]
[1742526106664,13.66812588,128.52,128.47,13.63812588]
[1742526106864,13.66812588,128.52,128.48,7.7833]
[1742526107086,13.66812588,128.52,128.48,21.42142588]
[1742526107679,0.03,128.52,128.49,13.63812588]
[1742526108194,0.03,128.52,128.49,20.23812588]
[1742526108689,0.03,128.52,128.49,332.23812588]
[1742526109183,13.66812588,128.52,128.49,326.3823]
[1742526109687,13.66812588,128.52,128.49,318.6]
[1742526110375,0.03,128.52,128.49,318.6]
[1742526111102,13.63812588,128.5,128.46,89.2871]
[1742526111271,13.63812588,128.49,128.46,1.5091]
[1742526111598,13.63812588,128.5,128.46,1.5091]
[1742526113788,7.7817,128.51,128.46,22.93162588]
[1742526114091,13.63812588,128.51,128.46,334.93162588]
[1742526114290,13.63812588,128.5,128.46,321.2935]
[1742526115069,13.63812588,128.5,128.46,313.5091]
[1742526115892,21.42052588,128.5,128.46,313.5091]
[1742526116101,13.63812588,128.49,128.46,312.0]
[1742526117170,21.42082588,128.49,128.46,312.0]
[1742526120375,13.63812588,128.47,128.46,312.0]
[1742526120575,13.63812588,128.47,128.44,0.063]
[1742526120773,13.63812588,128.45,128.44,0.063]
[1742526121184,32.28777474,128.45,128.44,0.063]
[1742526121386,32.57209788,128.45,128.44,0.063]
[1742526121886,13.92244902,128.45,128.44,0.063]
[1742526122188,32.57209788,128.45,128.44,0.063]
[1742526122597,40.35719788,128.45,128.44,0.063]
[1742526123493,40.64152102,128.45,128.44,0.063]
[1742526123696,47.09972102,128.45,128.44,0.063]
[1742526124609,47.09972102,128.45,128.41,0.063]
[1742526124610,0.14216157,128.43,128.41,0.063]
[1742526124776,32.28777474,128.42,128.41,0.063]
[1742526124976,32.57209788,128.42,128.41,0.063]
[1742526126207,18.933972,128.42,128.41,0.063]
[1742526126507,40.35899788,128.42,128.41,0.063]
[1742526128404,40.64332102,128.42,128.41,0.063]
[1742526128820,95.19582454,128.42,128.41,0.063]
[1742526129913,13.63812588,128.38,128.37,0.03]
[1742526130816,40.07707474,128.38,128.37,0.03]
[1742526131802,40.64572102,128.38,128.37,0.03]
[1742526133112,48.35220209,128.38,128.37,0.03]
[1742526133720,40.27857895,128.38,128.37,0.03]
[1742526133925,21.34460695,128.38,128.37,0.03]
[1742526134230,39.99425581,128.38,128.37,0.03]
[1742526136938,6.92432314,128.42,128.37,0.03]
[1742526137135,18.64964886,128.41,128.37,0.03]
[1742526137317,21.34460695,128.4,128.37,0.03]
[1742526137631,21.34460695,128.38,128.37,0.03]
[1742526138824,39.99425581,128.38,128.37,0.03]
[1742526140011,47.78355581,128.38,128.37,0.03]
[1742526145536,48.35220209,128.38,128.37,0.03]
[1742526145837,28.07482314,128.36,128.35,0.03]
[1742526146036,49.41943009,128.36,128.35,0.03]
[1742526147508,68.35340209,128.36,128.35,0.03]
[1742526151528,89.69800904,128.36,128.35,0.0001]
[1742526152328,68.35340209,128.36,128.35,0.0001]
[1742526153334,60.67622763,128.36,128.35,0.0001]
[1742526154638,196.77622763,128.36,128.35,0.0001]
[1742526154938,196.38668301,128.36,128.35,0.0001]
[1742526159435,251.05641297,128.36,128.35,0.0001]
[1742526159632,18.933972,128.35,128.33,0.03]
[1742526159845,87.27113445,128.34,128.33,0.03]
[1742526160046,93.95113445,128.34,128.33,0.03]
[1742526161151,101.74293445,128.34,128.33,0.03]
[1742526173853,47.07320449,128.34,128.33,0.03]
[1742526174054,40.39320449,128.34,128.33,0.03]
[1742526176135,95.34725759,128.34,128.33,0.03]
[1742526176531,40.39320449,128.34,128.33,0.03]
[1742526176737,32.31708135,128.35,128.33,0.03]
[1742526177139,13.66743249,128.34,128.33,0.03]
[1742526178160,40.10888135,128.34,128.33,0.03]
[1742526180668,95.34725759,128.34,128.33,0.03]
[1742526183856,95.06293445,128.34,128.33,0.03]
[1742526185272,40.67752763,128.34,128.33,0.03]
[1742526190670,95.34725759,128.34,128.33,0.03]
[1742526191564,0.28432314,128.29,128.26,313.478714]
[1742526191764,0.28432314,128.29,128.24,1.6638]
[1742526191765,18.933972,128.28,128.24,1.6638]
[1742526192072,13.66743249,128.25,128.24,1.6638]
[1742526192980,40.11428135,128.25,128.24,1.6638]
[1742526193180,32.31708135,128.25,128.24,0.03]
[1742526194173,21.74895563,128.25,128.24,0.03]
[1742526194377,40.39860449,128.25,128.24,0.03]
[1742526194760,40.68292763,128.25,128.24,0.03]
[1742526196159,40.39860449,128.25,128.24,0.03]